[Event "1st Serbian League 2022"]
[Site "Vrnjacka Banja"]
[Date "2022.09.27"]
[Round "8.26"]
[White "Bogosavljevic, Boban"]
[Black "Gokerkan, Cem Kaan"]
[Result "1-0"]
[ECO "D02"]
[WhiteElo "2533"]
[BlackElo "2465"]
[Annotator "TA"]
[PlyCount "87"]
[EventDate "2022.09.20"]
[EventType "team-tourn"]
[EventCountry "SRB"]
[SourceTitle "playchess.com"]
[Source "ChessBase"]
[SourceQuality "1"]
[TimeControl "40/5400+30:1800+30"]

{[%evp 14,87,15,19,20,-4,6,0,0,0,21,24,19,24,22,31,21,18,24,15,15,7,4,0,0,0,26,22,61,56,84,78,94,27,94,64,210,145,131,141,127,132,133,141,139,130,289,292,271,231,275,80,110,0,0,0,0,-18,0,0,0,0,8,0,0,0,624,622,597,580,29985,29986,29986,29987,29985,29986]} 1. Nf3 {[%emt 0:00:13]} d5 {[%emt 0:00:06]} 2. g3 {[%emt 0:01:05]} g6 {[%emt 0:01:36]} 3. Bg2 {[%emt 0:00:07]} Bg7 {[%emt 0:00:04]} 4. d4 {[%emt 0:00:08]} Nf6 {[%emt 0:00:28]} 5. O-O {[%emt 0:00:09]} O-O {[%emt 0:00:03]} 6. Nbd2 {[%emt 0:05:08]} c6 {[%emt 0:04:02]} 7. c3 {[%emt 0:02:29]} Bf5 {[%emt 0:11:54]} 8. Nh4 {[%emt 0:33:36]} Be6 {[%emt 0:00:19] D02: 1 d4 d5 2 Nf3 sidelines, including 2...Nf6 3 g3 and 2...Nf6 3 Bf4.} 9. Ndf3 {[%emt 0:03:02] [#]} Ne4 $146 {[%emt 0:08:56]} ({Predecessor:} 9... Qc8 10. Qb3 Ne4 11. Ng5 Nxg5 12. Bxg5 Re8 13. Nf3 Nd7 14. Bf4 h6 15. h4 Nb6 16. a4 {½-½ (38) Pfleger,H (2505)-Romanishin,O (2595) Lone Pine 1981}) 10. Ng5 {[%emt 0:03:37]} Nxg5 {[%emt 0:00:27] The position is equal.} 11. Bxg5 {[%emt 0:00:08]} h6 {[%emt 0:04:49]} 12. Bd2 {[%emt 0:00:34]} Kh7 {[%emt 0:06:40]} 13. e4 {[%emt 0:02:56]} dxe4 $1 {[%emt 0:00:42]} 14. Bxe4 {[%emt 0:00:11]} Nd7 {[%emt 0:11:26]} 15. Re1 {[%emt 0:02:40][%cal Oe4g6]} Bd5 {[%emt 0:00:59]} 16. Bd3 {[%emt 0:06:47] aiming for c4.} e5 $1 {[%emt 0:01:15]} 17. c4 $36 {[%emt 0:06:11][%mdl 2048] White fights for an advantage.} Be6 {[%emt 0:01:03][%cal Od7c5]} 18. d5 {[%emt 0:03:33]} cxd5 {[%emt 0:00:32]} 19. cxd5 {[%emt 0:00:06]} Bxd5 {[%emt 0:00:43]} 20. Bb4 {[%emt 0:00:29][%cal Od3g6] Against Nc5} Be6 {[%emt 0:07:31]} 21. Bxf8 {[%emt 0:06:04]} Qxf8 {[%emt 0:05:01]} 22. Rc1 {[%emt 0:11:49]} Rd8 {[%emt 0:04:41]} 23. Qh5 {[%emt 0:05:58]} (23. Qc2 $16 {[%cal Rd3g6] And now Bxg6+! would win.} f5 24. Bc4) 23... Qe8 {[%emt 0:09:12]} (23... Nf6 $11 {keeps the balance.} 24. Qe2 Bxa2) 24. Qf3 {[%emt 0:00:29]} f5 {[%emt 0:10:30] [#]} ({Black should try} 24... b6 $14) 25. Nxf5 $1 {[%emt 0:00:25][%mdl 512]} gxf5 {[%emt 0:00:48]} 26. Bxf5+ {[%emt 0:00:05]} Kh8 {[%emt 0:00:51] [#]} (26... Bxf5 27. Qxf5+ Qg6 28. Qxg6+ Kxg6 29. Rc7 $16) 27. Bxe6 $1 {[%emt 0:02:53]} (27. Rc7 $6 Qf8 28. Be4 Nc5 29. Bxb7 Qd6 $11) 27... Qxe6 {[%emt 0:00:01]} 28. Qxb7 {[%emt 0:00:24] Red1 is the strong threat.} Nf6 {[%emt 0:03:09]} 29. Rc7 {[%emt 0:00:12]} Nh5 {[%emt 0:01:37]} (29... Ne8 $16) 30. Rec1 $18 {[%emt 0:00:53]} (30. Qxa7 $6 Rg8 31. a4 Qa2 $18) 30... Rg8 {[%emt 0:02:59]} 31. Rc8 {[%emt 0:00:45] Hoping for Rxg8+.} ({Not} 31. Qxa7 Nf4 32. gxf4 Qg6+ 33. Kf1 Qd3+ 34. Ke1 Bf8 35. Rh7+ Qxh7 36. Qxh7+ Kxh7 $11) 31... Bf8 {[%emt 0:00:01]} 32. Kh1 $2 {[%emt 0:01:48]} ({Don't take} 32. Qxa7 $6 Nf4 $18) (32. Qf3 $18 Nf4 33. Kh1) 32... Qf5 $16 {[%emt 0:00:17] [#]} 33. Qd5 {[%emt 0:01:31] The board is on fire. White has more active pieces.} (33. Qxa7 {leads to mate.} Qf3+ 34. Kg1 Nf4) (33. R8c7 $1 $16 {Threatens to win with g4.} Nf6 34. Qxa7) 33... Nf6 $11 {[%emt 0:02:42]} 34. Qg2 {[%emt 0:00:06]} e4 {[%emt 0:00:04]} 35. h3 {[%emt 0:00:15]} e3 {[%emt 0:00:23] White must now prevent ...e2.} 36. g4 {[%emt 0:00:31]} Qe5 {[%emt 0:01:26]} 37. fxe3 {[%emt 0:00:50]} h5 {[%emt 0:00:14]} 38. Qf3 {[%emt 0:00:50]} hxg4 {[%emt 0:00:48]} 39. hxg4 {[%emt 0:00:14]} Nxg4 $4 {[%emt 0:00:57][%mdl 8192]} (39... Bd6 $11 40. Rxg8+ Kxg8 41. Rc8+ Kg7) 40. Qh3+ $18 {[%emt 0:00:43]} Nh6 {[%emt 0:00:22] [#] ( -> ...Qe4+)} 41. Rxf8 $1 {[%emt 0:02:53][%mdl 512]} Rxf8 {[%emt 0:03:14]} (41... Qe4+ 42. Rf3) 42. Qxh6+ {[%emt 0:01:24] White mates.} Kg8 {[%emt 0:00:01]} 43. Rg1+ {[%emt 0:00:19]} Kf7 {[%emt 0:00:03]} 44. Rf1+ {[%emt 0:00:11] Weighted Error Value: White=0.24 (precise) /Black=0.48} 1-0

[Event "1st Serbian League 2022"]
[Site "Vrnjacka Banja"]
[Date "2022.09.27"]
[Round "8.27"]
[White "Ristic, Nenad"]
[Black "Vuckovic, Bojan"]
[Result "1/2-1/2"]
[ECO "B31"]
[WhiteElo "2267"]
[BlackElo "2559"]
[Annotator "TA"]
[PlyCount "42"]
[EventDate "2022.09.20"]
[EventType "team-tourn"]
[EventCountry "SRB"]
[SourceTitle "playchess.com"]
[Source "ChessBase"]
[SourceQuality "1"]
[TimeControl "40/5400+30:1800+30"]

{[%evp 22,42,0,-10,11,-3,29,0,0,0,-5,-63,25,12,10,0,0,0,0,0,0,0,0]} 1. e4 {[%emt 0:00:03]} c5 {[%emt 0:00:22]} 2. Nf3 {[%emt 0:00:07]} Nc6 {[%emt 0:00:04]} 3. Bb5 {[%emt 0:00:17]} g6 {[%emt 0:00:15]} 4. O-O {[%emt 0:00:32]} Bg7 {[%emt 0:00:13]} 5. Re1 {[%emt 0:00:10]} Nf6 {[%emt 0:00:37][%cal Bg8f6,Bf6d5,Bd5c7,Bc7e6][%mdl 32]} 6. e5 {[%emt 0:00:14]} Nd5 {[%emt 0:00:15]} 7. Nc3 {[%emt 0:00:08]} Nc7 {[%emt 0:00:11]} 8. Bxc6 {[%emt 0:00:10]} dxc6 {[%emt 0:00:08]} 9. Ne4 {[%emt 0:00:10]} b6 {[%emt 0:00:33]} 10. Nf6+ {[%emt 0:00:32]} Kf8 {[%emt 0:00:12]} 11. Ne4 {[%emt 0:00:11]} Bg4 {[%emt 0:00:14] 11...h6 is the hot move.} 12. d3 {[%emt 0:00:16]} Ne6 {[%emt 0:00:27] B31: Sicilian: 2...Nc6 3 Bb5 g6.} 13. Ned2 {[%emt 0:05:02]} g5 {[%emt 0:02:22]} 14. h3 {[%emt 0:01:47]} Bh5 {[%emt 0:00:16]} 15. Ne4 {[%emt 0:10:47]} h6 {[%emt 0:03:05]} 16. Ng3 {[%emt 0:01:38]} (16. g4 $11 Bg6 17. Bd2) 16... Bg6 {[%emt 0:20:08]} (16... Bxf3 $15 17. Qxf3 Qc7) 17. h4 {[%emt 0:02:23][%cal Rh4g5] [#]} g4 $146 {[%emt 0:01:22] The position is equal.} ({Predecessor:} 17... Qd5 18. hxg5 hxg5 19. Nxg5 Nxg5 20. Bxg5 Bxe5 21. Qg4 Re8 22. Rab1 Bd6 23. b3 f5 {0-1 (41) Toufighi,H (2470)-Wen,Y (2508) Al Ain 2008}) 18. h5 {[%emt 0:00:59]} Bxd3 {[%emt 0:00:24]} 19. cxd3 {[%emt 0:00:33]} gxf3 {[%emt 0:00:07]} 20. Qxf3 {[%emt 0:01:29]} Nd4 {[%emt 0:00:17]} 21. Qg4 {[%emt 0:09:01][%cal Oe5e6]} e6 {[%emt 0:04:18] A rather calm draw.  Weighted Error Value: White=0.16 (very precise) /Black=0.21 (precise)} 1/2-1/2

[Event "1st Serbian League 2022"]
[Site "Vrnjacka Banja"]
[Date "2022.09.27"]
[Round "8.28"]
[White "Roganovic, Milos"]
[Black "Rajkovic, Mladen"]
[Result "1/2-1/2"]
[ECO "E92"]
[WhiteElo "2487"]
[BlackElo "2335"]
[Annotator "TA"]
[PlyCount "111"]
[EventDate "2022.09.20"]
[EventType "team-tourn"]
[EventCountry "SRB"]
[SourceTitle "playchess.com"]
[Source "ChessBase"]
[SourceQuality "1"]
[TimeControl "40/5400+30:1800+30"]

{[%evp 18,111,0,0,-1,-7,0,0,-8,-3,0,-2,7,8,0,10,30,22,44,35,47,45,58,48,57,66,92,82,91,90,76,73,64,68,77,73,81,29,110,110,114,95,100,123,246,234,316,310,285,172,189,79,64,64,64,64,62,68,106,106,110,117,106,54,55,55,77,78,80,35,46,8,8,8,8,8,8,8,8,8,8,8,8,8,8,5,2,0,0,0,0,0,0,0,0,0]} 1. d4 {[%emt 0:00:03]} Nf6 {[%emt 0:09:44]} 2. Nf3 {[%emt 0:00:28]} g6 {[%emt 0:01:47]} 3. c4 {[%emt 0:02:16]} Bg7 {[%emt 0:01:26]} 4. Nc3 {[%emt 0:00:26]} d6 {[%emt 0:01:08]} 5. e4 {[%emt 0:03:34]} O-O {[%emt 0:00:10]} 6. Be2 {[%emt 0:00:37]} e5 {[%emt 0:00:06]} 7. dxe5 {[%emt 0:03:02]} dxe5 {[%emt 0:00:05]} 8. Qxd8 {[%emt 0:00:07]} Rxd8 {[%emt 0:00:02]} 9. Nd5 {[%emt 0:00:37]} Nxd5 {[%emt 0:07:59]} 10. cxd5 {[%emt 0:00:39]} c6 {[%emt 0:02:12] E92: King's Indian: Classical: 6 Be2 e5: 7 dxe5, 7 Be3 and Petrosian System without 7...Nbd7.} 11. Bg5 {[%emt 0:06:43]} f6 {[%emt 0:03:54]} 12. dxc6 $1 {[%emt 0:11:15]} Nxc6 {[%emt 0:00:15]} (12... fxg5 13. c7 Rd7 14. Bc4+ (14. cxb8=R Rxb8 15. Bc4+ Kf8 $14) (14. cxb8=N Rc7 $14) (14. cxb8=B Rxb8 15. Bc4+ Kf8 $14) 14... Kf8 15. cxb8=Q (15. cxb8=R Rxb8 16. Nxg5 Bf6 $14) (15. cxb8=N Rc7 $14) (15. cxb8=B Rxb8 16. Nxg5 Bf6 $14) 15... Rxb8 16. Nxg5 $14) 13. Bc4+ {[%emt 0:00:37]} Kf8 {[%emt 0:01:46]} 14. Be3 {[%emt 0:01:31] [#]} Ne7 $146 {[%emt 0:02:34]} ({Predecessor:} 14... Nd4 15. Bxd4 exd4 16. g4 {½-½ (16) Bousios,H (2219)-Sideris,T (1901) Nikaia 2017}) 15. a4 {[%emt 0:24:09]} Bd7 {[%emt 0:04:38]} 16. Ke2 {[%emt 0:09:41]} Bc6 {[%emt 0:05:26]} 17. Nd2 {[%emt 0:01:50][%cal Bf3d2,Bd2b3,Bb3c5][%mdl 32]} f5 {[%emt 0:01:56]} 18. f3 {[%emt 0:00:43]} Bf6 {[%emt 0:02:33]} 19. b4 {[%emt 0:02:36]} Kg7 {[%emt 0:12:05]} 20. b5 {[%emt 0:04:13]} Bd7 {[%emt 0:03:08]} 21. Rhc1 {[%emt 0:04:47]} a6 {[%emt 0:01:12]} 22. Nb3 {[%emt 0:12:14]} axb5 {[%emt 0:04:15]} 23. axb5 {[%emt 0:00:54]} Rxa1 {[%emt 0:00:45]} 24. Rxa1 {[%emt 0:00:44]} Nc8 {[%emt 0:00:01]} 25. Nc5 {[%emt 0:05:45]} f4 {[%emt 0:01:43]} 26. Bf2 {[%emt 0:02:43]} ({But not} 26. Nxb7 fxe3 27. Nxd8 Bxd8 $11) 26... Nd6 {[%emt 0:00:02][%csl LRb5,LRc4]} 27. Rd1 {[%emt 0:00:16]} ({Better is} 27. Bd3 $16) 27... Bc8 {[%emt 0:14:50]} (27... Nxc4 $11 {remains equal.} 28. Rxd7+ Rxd7 29. Nxd7 Nd6) 28. Be6 $36 {[%emt 0:00:55][%mdl 2048] Black is under strong pressure.} Be7 {[%emt 0:01:16]} 29. b6 {[%emt 0:00:29]} Kf6 {[%emt 0:00:36]} 30. Bd5 {[%emt 0:00:33] White is much more active.} Nb5 {[%emt 0:17:56]} (30... Re8 $16 {was necessary.} 31. g3 fxg3 32. hxg3 h5) 31. Rc1 $18 {[%emt 0:00:04]} Nd4+ {[%emt 0:00:00]} 32. Bxd4 {[%emt 0:00:23]} exd4 {[%emt 0:00:00]} 33. Nd3 {[%emt 0:01:20] aiming for Rc7.} Bd6 {[%emt 0:00:00]} 34. Rc4 {[%emt 0:00:25]} (34. Kd2 $18 {has better winning chances.}) 34... Be6 $16 {[%emt 0:00:00]} 35. Rxd4 {[%emt 0:00:18]} Be5 {[%emt 0:00:00]} 36. Rc4 {[%emt 0:00:59] Hoping for Bxe6.} (36. Nxe5 Kxe5 37. Rc4 Bxd5 38. exd5 Rd6 $11) 36... Bxd5 {[%emt 0:00:00]} 37. exd5 {[%emt 0:00:02]} Rxd5 $14 {[%emt 0:03:30][%mdl 4096] Endgame [#] KRB-KRN} 38. Rc7 $1 {[%emt 0:00:58][%mdl 512]} Bd4 {[%emt 0:00:00]} (38... Bxc7 $2 39. bxc7 Kg7 40. c8=Q $18) (38... Bd6 39. Rxh7) 39. Rxb7 {[%emt 0:00:13]} Rd6 {[%emt 0:00:00]} 40. Nxf4 {[%emt 0:00:24]} (40. Rxh7 $16 {Threatens to win with b7.} Rxb6 41. Nxf4 Rb2+ 42. Kd3) 40... g5 $1 {[%emt 0:00:40]} 41. Nd3 {[%emt 0:30:54]} Re6+ {[%emt 0:04:38]} 42. Kf1 {[%emt 0:00:00]} Kg6 {[%emt 0:00:23]} 43. g4 {[%emt 0:00:00] And now Rd7 would win.} Re3 {[%emt 0:06:31]} 44. Nb4 {[%emt 0:00:00] Rd7 is the strong threat.} (44. Ne1 $5 {[%cal Rb7d7]} Rb3 45. Ke2 $16) 44... Rxf3+ {[%emt 0:00:47] The position is equal.} 45. Ke2 {[%emt 0:00:00]} Re3+ {[%emt 0:01:16]} 46. Kd2 {[%emt 0:00:00]} Re6 {[%emt 0:01:14]} 47. Nd5 {[%emt 0:00:00] Strongly threatening Kd3.} Rd6 {[%emt 0:00:14]} 48. Ne7+ {[%emt 0:00:00]} Kf6 {[%emt 0:00:13]} 49. Nf5 {[%emt 0:00:00]} Rxb6 {[%emt 0:01:04]} 50. Rxh7 {[%emt 0:00:00]} Bg1 {[%emt 0:01:26]} 51. h3 {[%emt 0:00:00]} Rb3 {[%emt 0:02:06]} 52. Ke2 {[%emt 0:00:00]} Ke5 {[%emt 0:01:24]} 53. h4 {[%emt 0:02:11]} gxh4 {[%emt 0:00:31]} 54. Nxh4 {[%emt 0:00:15]} Kf4 {[%emt 0:01:12] Prevents Nf3.} 55. Rf7+ {[%emt 0:01:12]} Kxg4 {[%emt 0:00:22]} 56. Rg7+ {[%emt 0:00:05] Weighted Error Value: White=0.11 (very precise) /Black=0.11 (very precise)} 1/2-1/2

[Event "1st Serbian League 2022"]
[Site "Vrnjacka Banja"]
[Date "2022.09.27"]
[Round "8.29"]
[White "Mijailovic, Zoran"]
[Black "Zajic, Milan"]
[Result "1/2-1/2"]
[ECO "D38"]
[WhiteElo "2345"]
[BlackElo "2402"]
[Annotator "TA"]
[PlyCount "46"]
[EventDate "2022.09.20"]
[EventType "team-tourn"]
[EventCountry "SRB"]
[SourceTitle "playchess.com"]
[Source "ChessBase"]
[SourceQuality "1"]
[TimeControl "40/5400+30:1800+30"]

{[%evp 18,46,19,20,38,6,30,13,9,7,6,7,2,0,0,0,0,-14,-14,-12,0,-47,-48,-63,0,0,0,-62,0,-6,0]} 1. d4 {[%emt 0:00:02]} Nf6 {[%emt 0:00:05]} 2. c4 {[%emt 0:00:15]} e6 {[%emt 0:00:04]} 3. Nf3 {[%emt 0:00:13]} d5 {[%emt 0:00:08]} 4. Nc3 {[%emt 0:01:39]} Bb4 {[%emt 0:00:11]} 5. Bg5 {[%emt 0:02:01]} h6 {[%emt 0:00:56]} 6. Bxf6 {[%emt 0:01:11]} Qxf6 {[%emt 0:00:11]} 7. e3 {[%emt 0:00:35]} O-O {[%emt 0:00:22]} 8. Rc1 {[%emt 0:00:50]} dxc4 {[%emt 0:00:56]} 9. Bxc4 {[%emt 0:01:34]} c5 {[%emt 0:00:07]} 10. O-O {[%emt 0:04:56] Black must now prevent Ne4.} cxd4 {[%emt 0:00:11] D38: Queen's Gambit Declined: Ragozin Defence (4 Nf3 Bb4).} 11. exd4 {[%emt 0:00:30]} Nc6 {[%emt 0:02:30]} 12. Ne4 {[%emt 0:01:27]} Qe7 {[%emt 0:00:45]} 13. Qe2 {[%emt 0:15:38]} Rd8 {[%emt 0:00:19]} 14. Rfd1 {[%emt 0:01:05]} Ba5 {[%emt 0:00:20]} 15. Bb5 {[%emt 0:11:03]} Bd7 {[%emt 0:19:54]} 16. Nc5 {[%emt 0:02:56]} Be8 {[%emt 0:02:27]} 17. a3 {[%emt 0:00:35]} Bb6 {[%emt 0:01:51][%cal Oc6d4]} 18. b4 {[%emt 0:00:42]} a5 {[%emt 0:04:10]} 19. Qb2 {[%emt 0:15:19]} (19. Rb1 $11) 19... axb4 $15 {[%emt 0:03:53]} 20. axb4 {[%emt 0:00:07] [#]} Rd6 $146 {[%emt 0:11:59]} (20... Ne5 $1 $15 21. Nxe5 Bxb5) ({Predecessor:} 20... Rd5 21. Bc4 Rf5 22. Bd3 Rf4 23. Qd2 Rxf3 24. gxf3 Nxd4 25. Bh7+ Kxh7 26. Qxd4 Bc6 27. Qf4 Bxc5 28. Rxc5 Ra3 29. Rxc6 bxc6 {0-1 (57) Oborski,A (1988)-Molenda,M (2379) Jastrzebie Zdroj 2018}) 21. Ne4 $11 {[%emt 0:05:14]} Rdd8 {[%emt 0:00:41]} (21... Rd5 $11 22. Bc4 Rdd8) 22. Nc5 $15 {[%emt 0:00:15] [#]} Rd6 {[%emt 0:02:30]} (22... Ne5 $1 $15 23. Nxe5 Bxb5) 23. Ne4 $11 {[%emt 0:00:11]} Rdd8 {[%emt 0:01:09] Weighted Error Value: White=0.09 (flawless) /Black=0.13 (very precise)} 1/2-1/2

[Event "1st Serbian League 2022"]
[Site "Vrnjacka Banja"]
[Date "2022.09.27"]
[Round "8.30"]
[White "Stankovic, Milos"]
[Black "Todorovic, Jovan"]
[Result "1-0"]
[ECO "B23"]
[WhiteElo "2439"]
[BlackElo "2350"]
[Annotator "TA"]
[PlyCount "99"]
[EventDate "2022.09.20"]
[EventType "team-tourn"]
[EventCountry "SRB"]
[SourceTitle "playchess.com"]
[Source "ChessBase"]
[SourceQuality "1"]
[TimeControl "40/5400+30:1800+30"]

{[%evp 9,99,21,12,10,10,11,6,0,17,6,9,0,2,4,8,10,14,8,8,8,35,28,29,29,49,31,33,28,48,0,110,43,60,0,100,106,84,0,0,0,0,0,35,35,70,35,243,250,831,929,947,928,769,0,0,0,903,847,902,883,879,852,769,735,727,670,775,635,1447,1005,29949,29953,29954,29956,29952,29948,12649,7811,6457,5716,5604,4794,1487,1747,29952,12844,7152,7152,29984,29985,29984,29]} 1. e4 {[%emt 0:02:11]} c5 {[%emt 0:01:35]} 2. Nc3 {[%emt 0:00:31]} d6 {[%emt 0:02:23]} 3. Bb5+ {[%emt 0:01:29]} Bd7 {[%emt 0:00:39]} 4. Bxd7+ {[%emt 0:00:38]} Qxd7 {[%emt 0:00:13]} 5. d4 {[%emt 0:00:23]} cxd4 {[%emt 0:01:29]} 6. Qxd4 {[%emt 0:00:29] B23: Closed Sicilian: Lines without g3.} Nc6 {[%emt 0:00:35]} 7. Qd3 {[%emt 0:00:31]} g6 {[%emt 0:12:41]} 8. Nf3 {[%emt 0:01:30] The position is equal.} Bg7 {[%emt 0:01:31]} 9. O-O {[%emt 0:00:30]} Nf6 {[%emt 0:01:04]} 10. Nd5 {[%emt 0:01:26]} O-O {[%emt 0:17:07]} 11. h3 {[%emt 0:02:39] [#]} Nxd5 $146 {[%emt 0:11:30]} ({Predecessor:} 11... Rac8 12. c3 Nxd5 13. Qxd5 b6 14. Bg5 h6 15. Bf4 Kh7 16. Rfe1 Na5 17. Qd3 Nc4 {½-½ (35) Perez Dominguez,J (2072)-Debnar,I (2137) ICCF email 2018}) 12. exd5 {[%emt 0:00:34]} Ne5 {[%emt 0:00:11]} 13. Nxe5 {[%emt 0:01:20]} Bxe5 {[%emt 0:00:10]} 14. c3 {[%emt 0:04:04]} Rfe8 {[%emt 0:15:24]} 15. f4 {[%emt 0:03:55]} Bf6 {[%emt 0:05:16]} 16. f5 {[%emt 0:01:32]} b5 {[%emt 0:00:26]} 17. Be3 {[%emt 0:01:23]} b4 {[%emt 0:00:57]} 18. cxb4 {[%emt 0:01:41]} Bxb2 {[%emt 0:00:07]} 19. Rae1 {[%emt 0:01:43]} (19. Rab1 $14 Bg7 20. a3) 19... Qb7 {[%emt 0:04:24] [#]} (19... Qa4 $11) 20. a3 {[%emt 0:05:50]} (20. b5 $1 $16) 20... a6 {[%emt 0:03:14]} 21. Bg5 {[%emt 0:03:21]} (21. h4 $14) 21... Bf6 {[%emt 0:07:44]} (21... Rac8 $11 {keeps the balance.}) 22. fxg6 $16 {[%emt 0:04:39]} hxg6 {[%emt 0:00:30] [#]} 23. Bxf6 {[%emt 0:00:30] White is more active.} ({White should try} 23. Qf3 $1 $16) 23... exf6 $11 {[%emt 0:00:30]} 24. Rxe8+ {[%emt 0:00:30]} Rxe8 {[%emt 0:00:30]} 25. Rxf6 $16 {[%emt 0:00:30][%mdl 4096] Endgame KQR-KQR} Re5 {[%emt 0:00:30]} 26. Kh2 {[%emt 0:00:30]} Kg7 {[%emt 0:00:30]} 27. Rf4 {[%emt 0:00:30]} ({Not} 27. Rxd6 $2 Qb8 28. Rxg6+ (28. Qxa6 $2 Rxd5 29. Qb6 Qxd6+ $19) 28... fxg6 $19) (27. Rf1 {keeps more tension.} Qxd5 28. Qxa6 Re3 29. Qa7) 27... a5 $2 {[%emt 0:00:30]} ({Better is} 27... Qb5 $14 28. Rc4 a5) 28. bxa5 $18 {[%emt 0:00:30][%cal Bb4a5,Ba5a6,Ba6a7][%mdl 32]} Qxd5 $2 {[%emt 0:00:30]} (28... Qb2 29. a6 Re7) 29. Qxd5 {[%emt 0:00:30]} Rxd5 {[%emt 0:00:30] KR-KR} 30. Ra4 {[%emt 0:00:30]} Rc5 {[%emt 0:00:30]} 31. Rf4 $2 {[%emt 0:23:01]} (31. a6 $18 {Threatening mate with a7.} Rc8 32. a7) 31... Rd5 {[%emt 0:11:49]} 32. Ra4 $2 {[%emt 0:00:07][%mdl 8192]} (32. h4 $11 Rxa5 33. a4) 32... Rc5 $1 {[%emt 0:00:18]} 33. a6 {[%emt 0:00:48] White wants to mate with a7.} Rc8 {[%emt 0:00:06]} 34. a7 {[%emt 0:00:18]} Ra8 {[%emt 0:00:05]} 35. Kg3 {[%emt 0:00:18]} Kf6 {[%emt 0:00:05]} 36. Kf4 {[%emt 0:00:09]} Ke6 {[%emt 0:00:51]} 37. Ke4 {[%emt 0:00:09]} f5+ {[%emt 0:00:38]} 38. Kd4 {[%emt 0:00:37] And now Kc4 would win.} g5 {[%emt 0:00:03]} 39. Ra5 {[%emt 0:00:43]} g4 {[%emt 0:00:25]} 40. hxg4 {[%emt 0:00:25]} fxg4 {[%emt 0:00:02]} 41. g3 {[%emt 0:30:23]} Kd7 {[%emt 0:30:23]} 42. Kd5 {[%emt 0:00:54]} Kc7 {[%emt 0:00:03]} 43. Ra4 {[%emt 0:00:20]} Kb6 {[%emt 0:00:20]} 44. Kxd6 {[%emt 0:01:56]} Rd8+ {[%emt 0:00:22]} 45. Ke7 {[%emt 0:01:39]} Ra8 {[%emt 0:00:08]} 46. Kd7 {[%emt 0:00:10]} Kb7 {[%emt 0:00:07]} 47. Rb4+ {[%emt 0:05:35]} Ka6 {[%emt 0:00:33]} 48. Kd6 {[%emt 0:01:59]} Rd8+ {[%emt 0:00:54]} 49. Kc7 {[%emt 0:00:09]} Ra8 {[%emt 0:00:17]} 50. Ra4+ {[%emt 0:00:11][%mdl 32768] Weighted Error Value: White=0.29 (precise) /Black=0.96. Loss on time!?} 1-0

[Event "1st Serbian League 2022"]
[Site "Vrnjacka Banja"]
[Date "2022.09.27"]
[Round "8.31"]
[White "Ter-Sahakyan, Samvel"]
[Black "Risteski, Emil"]
[Result "1/2-1/2"]
[ECO "B30"]
[WhiteElo "2630"]
[BlackElo "2364"]
[Annotator "TA"]
[PlyCount "75"]
[EventDate "2022.09.20"]
[EventType "team-tourn"]
[EventCountry "SRB"]
[SourceTitle "playchess.com"]
[Source "ChessBase"]
[SourceQuality "1"]
[TimeControl "40/5400+30:1800+30"]

{[%evp 9,75,29,25,14,13,4,26,16,30,14,28,2,12,0,27,23,22,0,0,0,0,0,0,0,0,0,0,0,0,-25,-23,-25,-25,-25,-25,-25,-25,-23,-23,-36,0,-48,0,-37,0,0,0,0,0,0,0,0,0,0,0,0,0,0,0,0,0,0,0,0,0,0,0,0]} 1. e4 {[%emt 0:00:03][%cal Be2e4,Be4e5][%mdl 32]} c5 {[%emt 0:00:16]} 2. Nf3 {[%emt 0:00:07]} Nc6 {[%emt 0:00:04]} 3. Bb5 {[%emt 0:03:54]} Nf6 {[%emt 0:00:18]} 4. Nc3 {[%emt 0:00:52]} g6 {[%emt 0:01:40]} 5. e5 {[%emt 0:07:13]} Nh5 {[%emt 0:00:57]} 6. d3 {[%emt 0:07:57] B30: Sicilian: 2...Nc6 3 Bb5, lines without ...g6.} Ng7 {[%emt 0:00:56]} 7. Bh6 {[%emt 0:09:16]} Ne6 {[%emt 0:00:33]} 8. Bxf8 {[%emt 0:01:32] [#] White has an edge.} Kxf8 $146 {[%emt 0:00:05]} ({Predecessor:} 8... Rxf8 9. Bxc6 dxc6 10. Ne4 Qa5+ 11. c3 Bd7 12. O-O O-O-O 13. Qd2 Qa6 14. Qe3 c4 {1-0 (29) Svoboda,V (2321)-Nun,J (2372) Czech Republic 2011}) 9. Bxc6 {[%emt 0:02:05]} dxc6 {[%emt 0:00:10]} 10. O-O {[%emt 0:01:43]} Kg7 {[%emt 0:01:47]} 11. Re1 {[%emt 0:10:41][%cal Bf1e1,Be1e4,Be4f4][%mdl 32]} b6 {[%emt 0:02:08]} 12. Qd2 {[%emt 0:03:56]} a5 {[%emt 0:15:45]} 13. Re4 {[%emt 0:05:38]} Nd4 {[%emt 0:06:47]} 14. Rf4 {[%emt 0:02:35]} h6 {[%emt 0:02:29]} 15. h4 {[%emt 0:11:09][%cal Bh2h4,Bh4h5][%mdl 32] Inhibits g5.} Bf5 {[%emt 0:05:08]} 16. Nxd4 {[%emt 0:04:07]} cxd4 {[%emt 0:00:05]} 17. Ne2 {[%emt 0:00:03]} c5 {[%emt 0:00:10]} 18. h5 {[%emt 0:02:44]} e6 {[%emt 0:04:47]} 19. Ng3 {[%emt 0:00:17]} Qg5 {[%emt 0:00:41]} 20. Re1 {[%emt 0:03:57]} Rad8 {[%emt 0:11:09]} 21. a4 {[%emt 0:11:33]} Rd5 {[%emt 0:06:16]} 22. hxg6 {[%emt 0:00:30]} fxg6 {[%emt 0:00:24]} ({Don't play} 22... Bxg6 23. Ne4 Bxe4 24. Rexe4 $14) 23. Qc1 {[%emt 0:04:34]} Rf8 {[%emt 0:07:21]} 24. b3 {[%emt 0:00:39]} Qe7 {[%emt 0:04:39]} 25. Re2 {[%emt 0:02:00]} (25. Rf3 $11 {is superior.}) 25... Qg5 {[%emt 0:09:16][%cal Of5d3]} 26. Re1 {[%emt 0:00:06]} Qe7 {[%emt 0:00:04]} 27. Rf3 {[%emt 0:01:11] The position is equal.} g5 {[%emt 0:04:29]} 28. Nh5+ {[%emt 0:01:00]} Kg6 $1 {[%emt 0:01:44]} 29. Nf6 {[%emt 0:00:19]} Rxe5 {[%emt 0:00:10]} 30. Rxe5 {[%emt 0:00:12]} Rxf6 {[%emt 0:00:35]} 31. Qe1 {[%emt 0:01:53][%cal Of3f5] [#] aiming for Rfxf5!} Qd6 {[%emt 0:01:23]} 32. Kh1 {[%emt 0:02:07]} h5 {[%emt 0:03:31]} 33. Kg1 {[%emt 0:00:03]} h4 {[%emt 0:00:46]} 34. Qe2 {[%emt 0:00:26]} Bg4 {[%emt 0:01:46] [#] And now ...Rf4 would win.} 35. Qe4+ {[%emt 0:00:04]} Bf5 {[%emt 0:00:02]} 36. Qe2 {[%emt 0:00:11]} Bg4 {[%emt 0:00:07] Strongly threatening ...Rf4.} 37. Qe4+ {[%emt 0:00:06]} Bf5 {[%emt 0:00:01]} 38. Qe1 {[%emt 0:01:07] An interesting draw.  Weighted Error Value: White=0.05 (flawless) /Black=0.06 (flawless)} 1/2-1/2